Cogmind - Beta 10.2 @@@ ROGUE MODE // 2021.05.17 @ 11:45:19 Player: silmarilion6 Result: Destroyed by S-27 Virus with Autogun Performance ------------- Evolutions (3) 1500 Regions Visited (6) 1200 Robots Destroyed (99) 495 Value Destroyed (2509) 2509 Prototype IDs (6) 120 Alien Tech Used (0) 0 Bonus (636) 636 TOTAL SCORE: 6460 Bonus ------- High Alert Combat Kills 436 Entered Garrisons 200 Cogmind --------- Core Integrity 0/700 Matter 300/300 Energy 99/100 System Corruption 0% Temperature Cool (0) Movement Core (50) Location -7/Garrison Parts ------- > --- POWER (2) -------- (None) > --- PROPULSION (4) --- (None) > --- UTILITY (4) ------ Advanced Visual Processing Unit Improved Weapon Shielding > --- WEAPON (3) ------- (None) > --- INVENTORY (4) ---- Hacking Suite Peak State ------------ > --- POWER ------------ Light Nuclear Core > --- PROPULSION ------- Improved Aluminum Leg Carbon-fiber Leg Carbon-fiber Leg Carbon-fiber Leg > --- UTILITY ---------- Medium Storage Unit Advanced Signal Interpreter Improved Weapon Shielding Hardened Medium Armor Plating > --- WEAPON ----------- Gauss Rifle Gauss Rifle > --- INVENTORY -------- Ion Engine Aluminum Leg Large Battery Shock Rifle Heavy Particle Gun Heavy Particle Cannon [Rating: 33] Favorites ----------- Power Ion Engine Engine Ion Engine Power Core Light Nuclear Core Propulsion Aluminum Leg Leg Aluminum Leg Utility Medium Storage Unit Device Sensor Array Storage Medium Storage Unit Processor Advanced Signal Interpreter Protection Hardened Medium Armor Plating Weapon Light Assault Rifle Energy Gun Shock Rifle Energy Cannon Heavy Particle Cannon Ballistic Gun Light Assault Rifle Launcher Grenade Launcher Build | -11 -10 -10 -9 -8 -7 -7 ------- Run | Scr Mat Min Mat Mat Fac Gar Slots Evolved 6 | . . . 2 2 2 . Power 1 | . . . . . 1 . Propulsion 2 | . . . 1 1 . . Utility 2 | . . . 1 1 . . Weapon 1 | . . . . . 1 . Parts Attached 87 | 7 9 4 35 25 1 6 Power 11 | 1 2 . 5 3 . . Engine 8 | 1 2 . 5 . . . Core 3 | . . . . 3 . . Reactor . | . . . . . . . Propulsion 26 | 2 2 . 15 6 . 1 Treads . | . . . . . . . Leg 26 | 2 2 . 15 6 . 1 Wheel . | . . . . . . . Hover . | . . . . . . . Flight . | . . . . . . . Utility 21 | 1 3 1 6 8 1 1 Device 6 | . 2 . 2 2 . . Storage 4 | 1 1 . 1 1 . . Processor 3 | . . . . 2 1 . Hackware . | . . . . . . . Protection 8 | . . 1 3 3 . 1 Artifact . | . . . . . . . Weapon 29 | 3 2 3 9 8 . 4 Energy Gun 14 | 2 2 . 1 6 . 3 Energy Cannon 4 | . . . 3 . . 1 Ballistic Gun 9 | 1 . 2 4 2 . . Ballistic Cannon . | . . . . . . . Launcher 2 | . . 1 1 . . . Special Weapon . | . . . . . . . Impact Weapon . | . . . . . . . Slashing Weapon . | . . . . . . . Piercing Weapon . | . . . . . . . Special Melee Weapon . | . . . . . . . Unidentified Prototypes . | . . . . . . . Parts Lost 30 | . 4 . 4 14 . 8 Power 2 | . . . . 2 . . Propulsion 11 | . 2 . 2 6 . 1 Utility 8 | . . . 2 3 . 3 Weapon 9 | . 2 . . 3 . 4 Highest Loss Streak 10 | . 3 . 2 10 . 5 Average Slot Usage (%) 91 | . 98 100 96 95 37 32 Engine 9 | . 14 14 11 3 . . Core 1 | . . . . 5 . . Leg 27 | . 27 28 30 33 . 2 Device 6 | . 13 6 6 5 . . Storage 12 | . 14 14 10 13 7 6 Processor 2 | . . . . 6 14 14 Protection 8 | . . 7 15 9 7 3 Energy Gun 6 | . 13 5 1 9 7 1 Energy Cannon 2 | . . . 6 . . 2 Ballistic Gun 11 | . 14 17 13 8 . . Naked Turns . | . . . . . . . Heaviest Build 34 | 11 18 19 34 31 19 19 Greatest Support 58 | 20 20 20 42 58 3 10 Greatest Overweight (x) 7 | 1 . . 1 7 6 6 Average Overweight (x) . | . . . . . 6 2 Largest Inventory Capacity 8 | 6 8 8 8 8 8 8 Average Capacity 7 | 5 6 8 7 8 8 7 Most Carried 8 | 2 7 8 8 8 5 5 Average Carried 6 | 1 5 7 7 7 4 3 Final Capacity 8 | 6 8 8 8 8 8 4 Final Carried 8 | 2 6 8 8 4 4 1 Class Distribution -------------------- 55% | Mutant 44% | Scavenger-Mutant Dominant Class ---------------- Mutant | -10/Materials Scavenger-Mutant | -10/Mines Mutant | -9/Materials Scavenger-Mutant | -8/Materials Mutant | -7/Factory Mutant | -7/Garrison Resources | -11 -10 -10 -9 -8 -7 -7 ----------- Run | Scr Mat Min Mat Mat Fac Gar Matter Collected 2103 | 270 163 80 893 625 . 72 Remotely . | . . . . . . . Salvage Created 3207 | . 406 116 1496 1135 . 54 Parts 216 | . 37 15 84 78 . 2 Haulers Intercepted 4 | . . . 2 2 . . Recyclers Shooed 1 | . . . 1 . . . Parts Field Recycled . | . . . . . . . Retrieved Matter . | . . . . . . . Parts Self-Destructed . | . . . . . . . Prevented . | . . . . . . . Kills | -11 -10 -10 -9 -8 -7 -7 ------- Run | Scr Mat Min Mat Mat Fac Gar Combat Hostiles Destroyed 74 | . 9 8 34 22 . 1 Guns 54 | . 8 3 21 22 . . Cannons 12 | . . . 11 . . 1 AOE 8 | . 1 5 2 . . . Classes Destroyed 11 | . 7 . 3 1 . . Worker 6 | . 1 . 3 2 . . Builder 3 | . 1 . 1 1 . . Hauler 4 | . . . 2 2 . . Recycler 4 | . 1 . 3 . . . Operator 2 | . 1 . . 1 . . Watcher 6 | . 2 . 2 2 . . Swarmer 26 | . 3 6 10 7 . . Grunt 36 | . 6 2 18 9 . 1 Brawler 1 | . . . 1 . . . Sentry 9 | . . . 5 4 . . Hunter 2 | . . . . 2 . . Best Kill Streak 8 | . 6 3 8 7 . 1 Combat Bots Only 8 | . 3 3 8 4 . 1 Max Kills in Single Turn 4 | . 4 3 2 2 . 1 Gunslinging 1 | . 1 . 1 . . . Exploded 3 | . 1 3 1 . . . Melee . | . . . . . . . Uniques/NPCs Destroyed . | . . . . . . . Combat | -11 -10 -10 -9 -8 -7 -7 -------- Run | Scr Mat Min Mat Mat Fac Gar Damage Taken 6461 | . 519 142 2152 2231 . 1417 Core 1389 | . 23 18 308 340 . 700 Absorbed by Shields . | . . . . . . . Core Remaining (%) 61 | 100 . 83 23 38 . . Volleys Fired 279 | . 31 14 124 93 . 17 Largest 2 | . 2 2 2 2 . 1 Hottest 113 | . 70 70 98 113 . 75 Shots Fired 496 | . 55 24 216 184 . 17 Gun 439 | . 55 21 165 184 . 14 Cannon 49 | . . . 46 . . 3 Launcher 8 | . . 3 5 . . . Special . | . . . . . . . Kinetic 310 | . 31 10 150 119 . . Thermal 107 | . 5 11 61 18 . 12 Explosive 8 | . . 3 5 . . . Electromagnetic 71 | . 19 . . 47 . 5 Robot Hit Streak 27 | . 9 4 27 8 . 9 Robot Miss Streak 7 | . 4 2 7 5 . 1 Penetration Max 1 | . . . . 1 . . Secondary Targets 11 | . 2 . 6 3 . . Max Gunslinging Chain 1 | . 1 . 1 1 . . Shots Hit Robots 292 | . 35 15 129 99 . 14 Core Hits 137 | . 18 9 62 46 . 2 Critical Hits 2 | . . . 1 1 . . Critical Kills 1 | . . . 1 . . . Critical Parts Destroyed . | . . . . . . . Melee Attacks . | . . . . . . . Impact . | . . . . . . . Slashing . | . . . . . . . Piercing . | . . . . . . . Sneak Attacks . | . . . . . . . Combat Hostiles . | . . . . . . . Follow-up Attacks . | . . . . . . . Damage Inflicted 6653 | . 1061 338 2719 2277 . 258 Guns 4427 | . 465 73 1440 2266 . 183 Cannons 775 | . . . 700 . . 75 Explosions 1439 | . 596 264 579 . . . Melee . | . . . . . . . Ramming 12 | . . 1 . 11 . . Kinetic 3277 | . 211 34 1397 1635 . . Thermal 1868 | . 659 39 743 257 . 170 Explosive 843 | . . 264 579 . . . Electromagnetic 653 | . 191 . . 374 . 88 Impact . | . . . . . . . Slashing . | . . . . . . . Piercing . | . . . . . . . Highest Corruption . | . . . . . . . Average Corruption . | . . . . . . . Corruption Purged . | . . . . . . . Overload Shots . | . . . . . . . Overflow Damage 319 | . 277 . 42 . . . Projectiles 5 | . . . 5 . . . Explosions 314 | . 277 . 37 . . . Melee . | . . . . . . . Knockbacks . | . . . . . . . Impact . | . . . . . . . Kinetic . | . . . . . . . Secondary . | . . . . . . . Self-Inflicted Damage 219 | . 181 . 38 . . . Shots 6 | . 2 . 4 . . . Rammed . | . . . . . . . Targets Rammed 6 | . . 2 . 4 . . Kicked 6 | . . 2 . 4 . . Crushed . | . . . . . . . Highest Temperature 412 | . 51 150 412 312 . 45 Average Temperature 93 | . 16 61 105 92 . 18 Received Heat Transfer 1995 | . 129 15 780 810 . 261 Effects 8 | . . . 5 3 . . Energy Bleed 2 | . . . 2 . . . Interference 5 | . . . 2 3 . . Matter Decay 1 | . . . 1 . . . Siege Activations . | . . . . . . . Robots Corrupted . | . . . . . . . Combat Hostiles . | . . . . . . . Parts Fried 2 | . . . . 2 . . Impact Corruptions . | . . . . . . . Robots Melted . | . . . . . . . Combat Hostiles . | . . . . . . . Parts Melted 2 | . 1 . 1 . . . Heat Transferred 2844 | . 735 111 1147 518 . 333 Parts Sabotaged . | . . . . . . . Parts Stolen . | . . . . . . . Parts Stripped . | . . . . . . . Power Chain Reactions 2 | . 2 . . . . . Missiles Intercepted . | . . . . . . . Alert | -11 -10 -10 -9 -8 -7 -7 ------- Run | Scr Mat Min Mat Mat Fac Gar Peak Influence 844 | . 252 317 844 818 315 255 Initial 356 | . . 97 45 356 285 220 Average 296 | . 107 180 324 563 295 230 Maximum Alert Level 3 | . 1 1 3 3 1 1 Low Security (%) 44 | 100 84 79 39 . . . Level 1 24 | . 15 20 20 9 100 100 Level 2 24 | . . . 28 72 . . Level 3 7 | . . . 10 18 . . Level 4 . | . . . . . . . Level 5 . | . . . . . . . High Security . | . . . . . . . Max Security . | . . . . . . . Squads Dispatched 16 | . 4 . 7 5 . . Investigation 9 | . 3 . 5 1 . . Extermination . | . . . . . . . Reinforcement 2 | . 1 . . 1 . . Assault 2 | . . . 2 . . . Garrison 3 | . . . . 3 . . Intercept . | . . . . . . . Construction Impeded . | . . . . . . . Haulers Reinforced . | . . . . . . . Stealth | -11 -10 -10 -9 -8 -7 -7 --------- Run | Scr Mat Min Mat Mat Fac Gar Distress Signals 5 | . 1 . 1 3 . . Communications Jammed . | . . . . . . . Distress Signals . | . . . . . . . Times Spotted 130 | . 16 8 54 39 . 13 Peak Tracking Total 10 | . 4 3 5 9 . 10 Tactical Retreats 10 | . 1 . 4 2 . 3 Traps | -11 -10 -10 -9 -8 -7 -7 ------- Run | Scr Mat Min Mat Mat Fac Gar Traps Triggered 4 | . 2 . 1 . . 1 Indirectly . | . . . . . . . Trap Hack Attempts . | . . . . . . . Triggered . | . . . . . . . Disarmed . | . . . . . . . Reprogrammed . | . . . . . . . Reused . | . . . . . . . Traps Extracted . | . . . . . . . Installed . | . . . . . . . Triggered 1 | . . . . . . 1 Machines | -11 -10 -10 -9 -8 -7 -7 ---------- Run | Scr Mat Min Mat Mat Fac Gar Machines Disabled 9 | . 4 1 3 1 . . Max in Single Turn 4 | . 4 1 1 1 . . Machines Sabotaged . | . . . . . . . Garrisons Compromised . | . . . . . . . Overloaded Fab Kills . | . . . . . . . Fab Network Shutdowns . | . . . . . . . Hacking | -11 -10 -10 -9 -8 -7 -7 --------- Run | Scr Mat Min Mat Mat Fac Gar Machines Accessed 16 | . 3 . 10 2 1 . Terminals 11 | . 3 . 7 1 . . Fabricators . | . . . . . . . Repair Stations 1 | . . . 1 . . . Recycling Units 2 | . . . 1 1 . . Scanalyzers 1 | . . . 1 . . . Garrison Access 1 | . . . . . 1 . Total Hacks 46 | . 7 . 31 5 3 . Successful 34 | . 6 . 22 4 2 . Failed 12 | . 1 . 9 1 1 . Catastrophic . | . . . . . . . Database Lockouts . | . . . . . . . Manual 1 | . 1 . . . . . Terminals 35 | . 7 . 24 4 . . Fabricators . | . . . . . . . Repair Stations 3 | . . . 3 . . . Recycling Units 4 | . . . 3 1 . . Scanalyzers 1 | . . . 1 . . . Garrison Access 3 | . . . . . 3 . Terminal Hacks 26 | . 6 . 17 3 . . Record 16 | . 1 . 12 3 . . Prototype ID Bank 3 | . 1 . 2 . . . Emergency Access Points 1 | . 1 . . . . . Alert Level 1 | . . . 1 . . . Locate Traps 1 | . 1 . . . . . Maintenance Status 1 | . 1 . . . . . Hauler Manifests 1 | . 1 . . . . . Registered Components 1 | . . . 1 . . . Zone Layout 1 | . . . 1 . . . Fabricator Hacks . | . . . . . . . Repair Station Hacks 2 | . . . 2 . . . Scan Component 1 | . . . 1 . . . Repair 1 | . . . 1 . . . Recycling Unit Hacks 3 | . . . 2 1 . . Process 1 | . . . 1 . . . Report Inventory 1 | . . . 1 . . . Retrieve Components 1 | . . . . 1 . . Scanalyzer 1 | . . . 1 . . . Insert Component 1 | . . . 1 . . . Garrison Access Hacks 2 | . . . . . 2 . Unlock Access 1 | . . . . . 1 . Coupler Status 1 | . . . . . 1 . Unauthorized Hacks . | . . . . . . . Terminals . | . . . . . . . Fabricators . | . . . . . . . Repair Stations . | . . . . . . . Recycling Units . | . . . . . . . Scanalyzers . | . . . . . . . Garrison Access . | . . . . . . . Data Cores Recovered . | . . . . . . . Used . | . . . . . . . Hacking Detections 11 | . 1 . 9 1 . . Full Trace Events 9 | . 1 . 7 1 . . Feedback Events . | . . . . . . . Feedback Blocked . | . . . . . . . Robot Schematics Acquired . | . . . . . . . Robots Built . | . . . . . . . Matter . | . . . . . . . Time . | . . . . . . . Total Robot Build Rating . | . . . . . . . Part Schematics Acquired . | . . . . . . . Parts Built . | . . . . . . . Matter . | . . . . . . . Time . | . . . . . . . Total Part Build Rating . | . . . . . . . Parts Repaired 1 | . . . 1 . . . Time 26 | . . . 26 . . . Parts Recycled . | . . . . . . . Recycled Matter 121 | . . . 121 . . . Retrieved Matter . | . . . . . . . Retrieved Components 1 | . . . . 1 . . Parts Scanalyzed . | . . . . . . . Part Schematics Acquired . | . . . . . . . Parts Damaged . | . . . . . . . Bothacking | -11 -10 -10 -9 -8 -7 -7 ------------ Run | Scr Mat Min Mat Mat Fac Gar Used RIF Installer . | . . . . . . . Robots Hacked . | . . . . . . . Non-combat . | . . . . . . . Combat . | . . . . . . . Robot Hacks Applied . | . . . . . . . Relay Couplers Released . | . . . . . . . Robots Rewired . | . . . . . . . Allies Hacked . | . . . . . . . Hacks Repelled . | . . . . . . . Allies | -11 -10 -10 -9 -8 -7 -7 -------- Run | Scr Mat Min Mat Mat Fac Gar Total Allies . | . . . . . . . Largest Group . | . . . . . . . Highest-Rated Group . | . . . . . . . Highest-Rated Ally . | . . . . . . . Total Orders . | . . . . . . . Ally Attacks . | . . . . . . . Total Damage . | . . . . . . . Kills . | . . . . . . . Allies Corrupted . | . . . . . . . Allies Melted . | . . . . . . . Intel | -11 -10 -10 -9 -8 -7 -7 ------- Run | Scr Mat Min Mat Mat Fac Gar Robot Analysis Total . | . . . . . . . Derelict Logs Recovered 1 | . . 1 . . . . Drone Launches . | . . . . . . . Drone Recoveries . | . . . . . . . Exploration | -11 -10 -10 -9 -8 -7 -7 ------------- Run | Scr Mat Min Mat Mat Fac Gar Turns Passed 4235 | 58 771 730 1459 836 146 235 Spaces Moved 2270 | 39 373 565 764 383 42 104 Core 121 | 8 . . . 7 42 64 Treads . | . . . . . . . Legs 2149 | 31 373 565 764 376 . 40 Wheels . | . . . . . . . Hover . | . . . . . . . Flight . | . . . . . . . Fastest Speed 50 | 50 120 120 120 120 350 50 Average Speed 128 | 109 120 120 124 124 350 171 Slowest Speed 400 | 120 120 120 150 400 350 350 Overloaded Moves . | . . . . . . . Propulsion Burnouts . | . . . . . . . Robots Hopped . | . . . . . . . Cave-ins Triggered . | . . . . . . . Exploration Rate (%) 39 | 4 51 92 62 32 1 33 Regions Visited 6 Branch Regions 1 Pre-discovered Areas . | . . . . . . . Known Exits Taken 2 | . . . . 1 1 . Unknown Exits Taken 4 | 1 1 1 1 . . . Scrap Searched 1 | . . 1 . . . . Spaces Dug . | . . . . . . . Terrain Destroyed 123 | . 44 28 50 1 . . Melee . | . . . . . . . Projectile 18 | . . . 17 1 . . AOE 105 | . 44 28 33 . . . Terrain Rammed . | . . . . . . . Walls Destroyed . | . . . . . . . Machines Disabled . | . . . . . . . Actions | -11 -10 -10 -9 -8 -7 -7 --------- Run | Scr Mat Min Mat Mat Fac Gar Total 3121 | 54 643 595 1076 565 44 144 Wait 334 | 1 209 1 93 21 . 9 Move 2264 | 38 372 564 763 382 41 104 Hop . | . . . . . . . Pick Up 77 | 8 15 6 27 18 1 2 Fast Attach 9 | . . . 4 5 . . Attach 39 | 6 5 1 10 10 1 6 Detach 1 | . . . . . . 1 Swap 39 | 1 4 3 21 10 . . Drop 68 | . 7 4 34 22 1 . Fire 279 | . 31 14 124 93 . 17 Melee . | . . . . . . . Ram . | . . . . . . . Kick 6 | . . 2 . 4 . . Crush . | . . . . . . . Escape Stasis 5 | . . . . . . 5 Rewire . | . . . . . . . Trap . | . . . . . . . Miscellaneous . | . . . . . . . Route ------- -11/Scrapyard -10/Materials (discovered 2 exits: *Mat / [*Min]) -10/Mines -9/Materials (discovered 2 exits: *Mat / [*Min]) -8/Materials -7/Factory (discovered 2 exits: Sto / Gar) -7/Garrison History --------- Turn | Location | Event 4 | -11/Scrapyard | Discovered new exit (range 15) 59 | -11/Scrapyard | Entered Materials 153 | -10/Materials | Discovered new exit (range 13) 301 | -10/Materials | Build established: Mutant 739 | -10/Materials | Lost 3 parts (2n1w) 798 | -10/Materials | Discovered new exit (range 16) 830 | -10/Materials | Entered Mines 955 | -10/Mines | Found a hidden stash of uninstalled traps 984 | -10/Mines | Build established: Scavenger-Mutant 1476 | -10/Mines | Discovered new exit (range 8) 1560 | -10/Mines | Entered Materials 1560 | -9/Materials | Evolved 2 slots: Propulsion x1, Utility x1 1911 | -9/Materials | Discovered new exit (range 15) 1958 | -9/Materials | Build established: Mutant 2321 | -9/Materials | Repaired Med. Storage Unit 2760 | -9/Materials | First assault squad dispatched 2763 | -9/Materials | Core integrity fell below 50% 2843 | -9/Materials | Destroyed 8 combat bots 2855 | -9/Materials | Build established: Scavenger-Mutant 2908 | -9/Materials | Discovered new exit (range 15) 3019 | -9/Materials | Entered another Materials area 3019 | -8/Materials | Evolved 2 slots: Propulsion x1, Utility x1 3320 | -8/Materials | Build established: Mutant 3543 | -8/Materials | Lost 3 parts (1n2u) 3694 | -8/Materials | Build established: Scavenger-Mutant 3740 | -8/Materials | Discovered new exit (range 17) 3831 | -8/Materials | Core integrity fell below 50% 3849 | -8/Materials | Lost 10 parts (2p5n1u2w) 3852 | -8/Materials | Identified exit to Factory 3855 | -8/Materials | Entered Factory 3855 | -7/Factory | Evolved 2 slots: Power x1, Weapon x1 3856 | -7/Factory | Identified exit to Storage 3949 | -7/Factory | Identified exit to Garrison 4001 | -7/Factory | Entered Garrison 4107 | -7/Garrison | Build established: Mutant 4148 | -7/Garrison | Lost 3 parts (1u2w) 4198 | -7/Garrison | Triggered checkpoint 4210 | -7/Garrison | Triggered checkpoint 4218 | -7/Garrison | Core integrity fell below 50% 4225 | -7/Garrison | Core integrity fell below 20% 4236 | -7/Garrison | Destroyed by S-27 Virus with Autogun Last Messages --------------- 04166_ Acquired 18 matter. 04198_ Beams of light sweep through the air. An alarm sounds. 04198_ Penetrated by Slug. 04204_ Slug penetrates Reinforced Barrier. 04204_ Hvy. Particle Cannon destroyed. 04204_ Penetrated by Slug. 04207_ Slug penetrates Reinforced Barrier. 04208_ Penetrated by Slug. 04210_ Beams of light sweep through the air. An alarm sounds. 04211_ Penetrated by Slug. 04212_ Aluminum Leg destroyed. 04214_ Slug penetrates Wall. 04216_ Penetrated by Slug. 04217_ Particle Gun destroyed. 04220_ Slug penetrates Reinforced Barrier. 04222_ Adv. Signal Interpreter destroyed. 04222_ Penetrated by Slug. 04222_ Med. Storage Unit destroyed. 04223_ Slug penetrates Wall. 04226_ Slug penetrates Reinforced Barrier. Map ----- +----------------------------------------------------+ | ???????????????????????????????????? ???????????? | | ???????????????????????????????????# #######????? | | ???????????????????????????????????# ## #????? | | ??????????????????????????????????## ## ###### | | ???????????????????????????????#### | | ???????????????????????????????? | | ????????????????????????????????? | | ??????????????????????????????????# ## ## # | | ??????????????????????????????????# ## ## # | | ??????????????????????????????????" " | | ??????????????????????????????????" " | | ??????????????????????????????????" " | | ??????????????????????????????????" " | | ??????????????????????????????????# ## ## # | | ?????????????????????############## ##^ ^^## # | | ??????????????????# + | | ????????????????????????# | | ????????????????????????# ######## # | | ????????????????????????# #??????## ## ## ## | | ????????????????????????# #???????# ## ## #? | | ????????????????????????# #???????# ######## #? | | ????????????????????????# #???????# #??????# #? | | ????????????????????????# #???????# #??????# #? | | ????????????????????????# #???????# #??????# #? | | ???????????????########## ######### #??????# #? | | ?????????# @ ss #??????# ## | | ?????????# s #??????# | | ?????????#!!############# ############??????# | | ????????????????????????# #?????????????????# ### | | ????????????????????????# #?????????????????# ??? | | ????????????????????????# #?????????????????# ??? | | ????????????????????????# #?????????????????# ??? | | ????????????????????????# ?????????????????? ??? | | ????????????????????????# #?????????????????? ??? | | ????????????????????????# #?????????????????? ??? | | ????????????????????????Y #?????????????????? ??? | | ????????????????????????# #?????????????????????? | | ????????????????????????# #?????????????????????? | | ???????????????????????? #?????????????????????? | | ???????????????????????? #?????????????????????? | | ????????????????????????####?????????????????????? | | ?????????????????????????????????????????????????? | | ?????????????????????????????????????????????????? | | ?????????????????????????????????????????????????? | | ?????????????????????????????????????????????????? | | ?????????????????????????????????????????????????? | | ?????????????????????????????????????????????????? | | ?????????????????????????????????????????????????? | | ?????????????????????????????????????????????????? | | ?????????????????????????????????????????????????? | +----------------------------------------------------+ Best States ------------- Heat Dissipation 34 Energy Generation 14 Energy Capacity 565 Matter Stores 300 Matter Capacity 300 Sight Range 20 Robot Scan Range 16 Terrain Scan Density 10 Additional Mass Support 6 Armor Coverage 225 Weapon Shielding 66 Evasion (%) 50 Item Schematics ----------------- None Robot Schematics ------------------ None Fabricated ------------ Nothing Alien Tech Used ----------------- None Achievements -------------- I Spy Please Form A Line Shopping List Challenges ------------ None Game ------ Seed DispersionPointyFrame Manual? 0 Play Time 01:22:58 Cumulative 6.2 hours Start 2021.05.17 @ 06:50:54 End 2021.05.17 @ 11:45:19 Sessions 2 Manual Loads 0 Difficulty Rogue Special Mode None Game No. 4 Rogue 4 Adventurer 0 Explorer 0 Win Type - Total 0 Types 0/0/0/0/0/0/0/0/0 Lore% 12 Gallery% 9 Achievement% 8 Wizard Run 0 Options --------- ASCII 0 Keyboard 0 Movement Mouse Keybinds 0 Fullscreen 1 Font 18/CogNarrow Map View 76x50 Tactical HUD 1 Map Filters NONE Filters NONE Steam 1 RUN: cd6a5a99-b776-4830-9412-47821d90697f